[Event "Titled Tuesday Blitz February 22 Late 2022"]
[White "Ezat, Mohamed"]
[Black "Tomiello, Mateus Costamilan"]
[WhiteFideId "10600906"]
[BlackFideId "22701958"]
[WhiteElo "2620"]
[BlackElo "2451"]
[Result "0-1"]
[Round "07"]
[TimeControl "180+1"]
[Date "2022.02.23"]
[WhiteClock "0:00:03"]
[BlackClock "0:00:02"]

1. e4 {[%clk 0:02:53]}  e5 {[%clk 0:02:59]} 2. Nf3 {[%clk 0:02:52]}  Nc6 {[%clk 0:03:00]} 3. Bb5 {[%clk 0:02:52]}  Nf6 {[%clk 0:03:00]} 4. O-O {[%clk 0:02:50]}  Nxe4 {[%clk 0:03:00]} 5. Re1 {[%clk 0:01:25]}  Nd6 {[%clk 0:03:00]} 6. Nxe5 {[%clk 0:01:22]}  Nxe5 {[%clk 0:03:00]} 7. Rxe5+ {[%clk 0:01:22]}  Be7 {[%clk 0:03:00]} 8. Bf1 {[%clk 0:01:22]}  O-O {[%clk 0:03:00]} 9. d4 {[%clk 0:01:23]}  Bf6 {[%clk 0:02:57]} 10. Re1 {[%clk 0:01:23]}  Nf5 {[%clk 0:02:55]} 11. c3 {[%clk 0:01:23]}  d5 {[%clk 0:02:55]} 12. Bd3 {[%clk 0:01:23]}  c6 {[%clk 0:02:49]} 13. Qf3 {[%clk 0:01:20]}  Nh4 {[%clk 0:02:48]} 14. Qg3 {[%clk 0:01:20]}  Bf5 {[%clk 0:02:43]} 15. Nd2 {[%clk 0:01:15]}  Bxd3 {[%clk 0:02:38]} 16. Qxd3 {[%clk 0:01:14]}  Qd6 {[%clk 0:02:38]} 17. Nf3 {[%clk 0:01:13]}  Ng6 {[%clk 0:02:37]} 18. Bg5 {[%clk 0:01:11]}  Bxg5 {[%clk 0:02:33]} 19. Nxg5 {[%clk 0:01:11]}  h6 {[%clk 0:02:34]} 20. Nf3 {[%clk 0:00:55]}  Rae8 {[%clk 0:02:32]} 21. Qf5 {[%clk 0:00:54]}  Qf4 {[%clk 0:02:14]} 22. Qxf4 {[%clk 0:00:53]}  Nxf4 {[%clk 0:02:14]} 23. g3 {[%clk 0:00:51]}  Nd3 {[%clk 0:02:08]} 24. Rxe8 {[%clk 0:00:48]}  Rxe8 {[%clk 0:02:08]} 25. Kf1 {[%clk 0:00:46]}  b5 {[%clk 0:01:42]} 26. Rb1 {[%clk 0:00:46]}  b4 {[%clk 0:01:38]} 27. cxb4 {[%clk 0:00:42]}  Nxb4 {[%clk 0:01:37]} 28. Rc1 {[%clk 0:00:42]}  f6 {[%clk 0:01:31]} 29. a3 {[%clk 0:00:40]}  Nd3 {[%clk 0:01:28]} 30. Rxc6 {[%clk 0:00:39]}  Nxb2 {[%clk 0:01:29]} 31. Rc7 {[%clk 0:00:39]}  a5 {[%clk 0:01:27]} 32. Nh4 {[%clk 0:00:36]}  Nc4 {[%clk 0:01:20]} 33. Nf5 {[%clk 0:00:35]}  Nxa3 {[%clk 0:01:18]} 34. Rxg7+ {[%clk 0:00:36]}  Kh8 {[%clk 0:01:17]} 35. Rg6 {[%clk 0:00:34]}  Nc4 {[%clk 0:01:16]} 36. Rxf6 {[%clk 0:00:33]}  a4 {[%clk 0:01:12]} 37. Rxh6+ {[%clk 0:00:32]}  Kg8 {[%clk 0:01:12]} 38. Ra6 {[%clk 0:00:32]}  a3 {[%clk 0:01:12]} 39. Ra7 {[%clk 0:00:30]}  Rb8 {[%clk 0:01:08]} 40. Ne7+ {[%clk 0:00:30]}  Kf8 {[%clk 0:00:54]} 41. Nxd5 {[%clk 0:00:30]}  Rd8 {[%clk 0:00:51]} 42. Nf4 {[%clk 0:00:29]}  Rb8 {[%clk 0:00:47]} 43. h4 {[%clk 0:00:27]}  Rb2 {[%clk 0:00:46]} 44. Kg2 {[%clk 0:00:25]}  a2 {[%clk 0:00:47]} 45. h5 {[%clk 0:00:26]}  Nd2 {[%clk 0:00:29]} 46. h6 {[%clk 0:00:24]}  Ne4 {[%clk 0:00:19]} 47. Nd3 {[%clk 0:00:18]}  Rb6 {[%clk 0:00:15]} 48. Ra8+ {[%clk 0:00:12]}  Kf7 {[%clk 0:00:14]} 49. Ne5+ {[%clk 0:00:12]}  Ke6 {[%clk 0:00:13]} 50. Rxa2 {[%clk 0:00:11]}  Rb7 {[%clk 0:00:12]} 51. Ra6+ {[%clk 0:00:10]}  Kd5 {[%clk 0:00:12]} 52. Ng6 {[%clk 0:00:08]}  Rh7 {[%clk 0:00:10]} 53. Nf4+ {[%clk 0:00:08]}  Kxd4 {[%clk 0:00:11]} 54. Re6 {[%clk 0:00:05]}  Nc5 {[%clk 0:00:11]} 55. Rg6 {[%clk 0:00:05]}  Ne4 {[%clk 0:00:08]} 56. Nh5 {[%clk 0:00:06]}  Ke5 {[%clk 0:00:08]} 57. g4 {[%clk 0:00:05]}  Rh8 {[%clk 0:00:03]} 58. g5 {[%clk 0:00:05]}  Kf5 {[%clk 0:00:03]} 59. Rg7 {[%clk 0:00:03]}  Nxg5 {[%clk 0:00:03]} 60. Ng3+ {[%clk 0:00:03]}  Kf4 {[%clk 0:00:02]} 0-1


[Site "https://www.chess.com"]

[Event "Titled Tuesday Blitz February 22 Late 2022"]
[White "Fiorito, Fabian"]
[Black "De Souza, Cristiano Gomes"]
[WhiteFideId "100200"]
[BlackFideId "2151758"]
[WhiteElo "2395"]
[BlackElo "2068"]
[Result "1-0"]
[Round "07"]
[TimeControl "180+1"]
[Date "2022.02.23"]
[WhiteClock "0:00:13"]
[BlackClock "0:00:13"]

1. d4 {[%clk 0:02:59]}  Nf6 {[%clk 0:02:57]} 2. Nc3 {[%clk 0:02:57]}  g6 {[%clk 0:02:55]} 3. e4 {[%clk 0:02:57]}  d6 {[%clk 0:02:56]} 4. Be3 {[%clk 0:02:56]}  Bg7 {[%clk 0:02:56]} 5. Qd2 {[%clk 0:02:56]}  h6 {[%clk 0:02:56]} 6. f3 {[%clk 0:02:56]}  Nbd7 {[%clk 0:02:54]} 7. O-O-O {[%clk 0:02:56]}  c6 {[%clk 0:02:53]} 8. Kb1 {[%clk 0:02:53]}  b5 {[%clk 0:02:52]} 9. g4 {[%clk 0:02:52]}  b4 {[%clk 0:02:51]} 10. Nce2 {[%clk 0:02:52]}  a5 {[%clk 0:02:48]} 11. h4 {[%clk 0:02:50]}  Ba6 {[%clk 0:02:48]} 12. Nh3 {[%clk 0:02:41]}  c5 {[%clk 0:02:42]} 13. e5 {[%clk 0:02:31]}  dxe5 {[%clk 0:02:35]} 14. dxc5 {[%clk 0:02:30]}  Qc7 {[%clk 0:02:30]} 15. f4 {[%clk 0:02:13]}  Nxc5 {[%clk 0:02:21]} 16. Bg2 {[%clk 0:02:07]}  Rc8 {[%clk 0:01:59]} 17. fxe5 {[%clk 0:02:05]}  Qxe5 {[%clk 0:01:54]} 18. Nd4 {[%clk 0:01:40]}  Nfe4 {[%clk 0:01:49]} 19. Qe1 {[%clk 0:01:36]}  O-O {[%clk 0:01:46]} 20. Nf2 {[%clk 0:01:24]}  Nxf2 {[%clk 0:01:44]} 21. Qxf2 {[%clk 0:01:25]}  Ne6 {[%clk 0:01:41]} 22. Rhe1 {[%clk 0:01:04]}  Nxd4 {[%clk 0:01:35]} 23. Bxd4 {[%clk 0:01:02]}  Qc7 {[%clk 0:01:27]} 24. h5 {[%clk 0:01:01]}  Rcd8 {[%clk 0:01:19]} 25. Be4 {[%clk 0:00:40]}  Rxd4 {[%clk 0:01:10]} 26. Rxd4 {[%clk 0:00:33]}  Bxd4 {[%clk 0:01:03]} 27. Qxd4 {[%clk 0:00:33]}  Qg3 {[%clk 0:00:58]} 28. Rh1 {[%clk 0:00:26]}  Qxg4 {[%clk 0:00:50]} 29. hxg6 {[%clk 0:00:25]}  Qf4 {[%clk 0:00:36]} 30. gxf7+ {[%clk 0:00:21]}  Kxf7 {[%clk 0:00:19]} 31. Rg1 {[%clk 0:00:17]}  Ke6 {[%clk 0:00:15]} 32. Qd5+ {[%clk 0:00:13]}  Kf6 {[%clk 0:00:13]} 33. Rg6# {[%clk 0:00:13]} 1-0


[Site "https://www.chess.com"]

[Event "Titled Tuesday Blitz February 22 Late 2022"]
[White "Golubka, Petro"]
[Black "Muradli, Mahammad"]
[WhiteFideId "14114224"]
[BlackFideId "13409301"]
[WhiteElo "2392"]
[BlackElo "2645"]
[Result "1-0"]
[Round "07"]
[TimeControl "180+1"]
[Date "2022.02.22"]
[WhiteClock "0:00:39"]
[BlackClock "0:00:01"]

1. e4 {[%clk 0:03:00]}  Nf6 {[%clk 0:02:59]} 2. e5 {[%clk 0:02:46]}  Nd5 {[%clk 0:02:59]} 3. Bc4 {[%clk 0:02:45]}  e6 {[%clk 0:02:59]} 4. Qg4 {[%clk 0:02:42]}  d6 {[%clk 0:02:58]} 5. d4 {[%clk 0:02:41]}  c5 {[%clk 0:02:53]} 6. exd6 {[%clk 0:02:38]}  cxd4 {[%clk 0:02:50]} 7. Nf3 {[%clk 0:02:38]}  Nc6 {[%clk 0:02:46]} 8. O-O {[%clk 0:02:37]}  h5 {[%clk 0:02:39]} 9. Qe4 {[%clk 0:02:33]}  Nf6 {[%clk 0:02:35]} 10. Qe2 {[%clk 0:02:32]}  Bxd6 {[%clk 0:02:35]} 11. Bg5 {[%clk 0:02:31]}  Be7 {[%clk 0:02:16]} 12. Rd1 {[%clk 0:02:25]}  Qa5 {[%clk 0:02:16]} 13. Nbd2 {[%clk 0:01:47]}  Bd7 {[%clk 0:01:57]} 14. Nb3 {[%clk 0:01:47]}  Qb6 {[%clk 0:01:55]} 15. a4 {[%clk 0:01:45]}  a6 {[%clk 0:01:46]} 16. a5 {[%clk 0:01:44]}  Qc7 {[%clk 0:01:46]} 17. Nbxd4 {[%clk 0:01:38]}  Nxd4 {[%clk 0:01:41]} 18. Rxd4 {[%clk 0:01:39]}  Bc6 {[%clk 0:01:36]} 19. Ne5 {[%clk 0:01:33]}  Bd5 {[%clk 0:00:52]} 20. Bxd5 {[%clk 0:01:25]}  Nxd5 {[%clk 0:00:53]} 21. Bxe7 {[%clk 0:01:19]}  Qxe7 {[%clk 0:00:52]} 22. c4 {[%clk 0:01:18]}  Nf6 {[%clk 0:00:51]} 23. Qd2 {[%clk 0:01:11]}  O-O {[%clk 0:00:50]} 24. b4 {[%clk 0:01:12]}  Rfd8 {[%clk 0:00:47]} 25. b5 {[%clk 0:01:09]}  Qc7 {[%clk 0:00:14]} 26. b6 {[%clk 0:01:05]}  Qe7 {[%clk 0:00:14]} 27. c5 {[%clk 0:01:02]}  Rd5 {[%clk 0:00:06]} 28. Rxd5 {[%clk 0:00:59]}  Nxd5 {[%clk 0:00:07]} 29. c6 {[%clk 0:00:59]}  bxc6 {[%clk 0:00:08]} 30. Nxc6 {[%clk 0:00:57]}  Qd6 {[%clk 0:00:06]} 31. Rc1 {[%clk 0:00:52]}  Rc8 {[%clk 0:00:04]} 32. b7 {[%clk 0:00:50]}  Re8 {[%clk 0:00:04]} 33. g3 {[%clk 0:00:43]}  Qc7 {[%clk 0:00:03]} 34. Qb2 {[%clk 0:00:40]}  Nf6 {[%clk 0:00:01]} 35. b8=Q {[%clk 0:00:39]} 1-0


[Site "https://www.chess.com"]

[Event "Titled Tuesday Blitz February 22 Late 2022"]
[White "Gomez Ledo, Roberto Carlos"]
[Black "Pichot, Alan"]
[WhiteFideId "3507076"]
[BlackFideId "110973"]
[WhiteElo "2379"]
[BlackElo "2543"]
[Result "1-0"]
[Round "07"]
[TimeControl "180+1"]
[Date "2022.02.22"]
[WhiteClock "0:00:12"]
[BlackClock "0:00:02"]

1. d4 {[%clk 0:02:57]}  Nf6 {[%clk 0:02:57]} 2. Bf4 {[%clk 0:02:56]}  g6 {[%clk 0:02:55]} 3. Nc3 {[%clk 0:02:55]}  d5 {[%clk 0:02:54]} 4. Nb5 {[%clk 0:02:54]}  Na6 {[%clk 0:02:54]} 5. e3 {[%clk 0:02:53]}  Bg7 {[%clk 0:02:53]} 6. h3 {[%clk 0:02:51]}  O-O {[%clk 0:02:52]} 7. Nf3 {[%clk 0:02:51]}  c6 {[%clk 0:02:53]} 8. Na3 {[%clk 0:02:50]}  b5 {[%clk 0:02:48]} 9. Be2 {[%clk 0:02:49]}  Nc7 {[%clk 0:02:46]} 10. O-O {[%clk 0:02:48]}  Nce8 {[%clk 0:02:46]} 11. Nb1 {[%clk 0:02:47]}  Nd6 {[%clk 0:02:42]} 12. a4 {[%clk 0:02:44]}  b4 {[%clk 0:02:39]} 13. c3 {[%clk 0:02:39]}  Rb8 {[%clk 0:02:34]} 14. Nbd2 {[%clk 0:02:38]}  Bf5 {[%clk 0:02:25]} 15. c4 {[%clk 0:02:34]}  Ra8 {[%clk 0:01:49]} 16. c5 {[%clk 0:02:20]}  Nde4 {[%clk 0:01:49]} 17. a5 {[%clk 0:02:19]}  Qd7 {[%clk 0:01:13]} 18. a6 {[%clk 0:02:14]}  Nxd2 {[%clk 0:01:04]} 19. Qxd2 {[%clk 0:02:10]}  Ne4 {[%clk 0:00:58]} 20. Qxb4 {[%clk 0:02:07]}  f6 {[%clk 0:00:59]} 21. Nd2 {[%clk 0:01:49]}  e5 {[%clk 0:00:57]} 22. Nxe4 {[%clk 0:01:47]}  Bxe4 {[%clk 0:00:52]} 23. Bg3 {[%clk 0:01:47]}  Rab8 {[%clk 0:00:53]} 24. Qc3 {[%clk 0:01:44]}  Rfe8 {[%clk 0:00:49]} 25. b4 {[%clk 0:01:41]}  h5 {[%clk 0:00:48]} 26. Bd3 {[%clk 0:01:38]}  Bxd3 {[%clk 0:00:29]} 27. Qxd3 {[%clk 0:01:39]}  Rxb4 {[%clk 0:00:29]} 28. Qxg6 {[%clk 0:01:24]}  exd4 {[%clk 0:00:29]} 29. exd4 {[%clk 0:01:24]}  Qf7 {[%clk 0:00:07]} 30. Qd3 {[%clk 0:00:55]}  f5 {[%clk 0:00:05]} 31. Be5 {[%clk 0:00:48]}  Bxe5 {[%clk 0:00:05]} 32. dxe5 {[%clk 0:00:49]}  Rxe5 {[%clk 0:00:06]} 33. Rab1 {[%clk 0:00:47]}  Ree4 {[%clk 0:00:04]} 34. Rxb4 {[%clk 0:00:43]}  Rxb4 {[%clk 0:00:05]} 35. Re1 {[%clk 0:00:42]}  Re4 {[%clk 0:00:04]} 36. Rb1 {[%clk 0:00:42]}  Qc7 {[%clk 0:00:04]} 37. Qf3 {[%clk 0:00:35]}  Qe5 {[%clk 0:00:05]} 38. Qxh5 {[%clk 0:00:32]}  Re1+ {[%clk 0:00:05]} 39. Rxe1 {[%clk 0:00:32]}  Qxe1+ {[%clk 0:00:06]} 40. Kh2 {[%clk 0:00:32]}  Qe5+ {[%clk 0:00:07]} 41. g3 {[%clk 0:00:31]}  d4 {[%clk 0:00:03]} 42. Qg6+ {[%clk 0:00:30]}  Kf8 {[%clk 0:00:04]} 43. Qxc6 {[%clk 0:00:27]}  d3 {[%clk 0:00:04]} 44. Qa8+ {[%clk 0:00:27]}  Kf7 {[%clk 0:00:03]} 45. Qxa7+ {[%clk 0:00:27]}  Kg6 {[%clk 0:00:03]} 46. Qb6+ {[%clk 0:00:27]}  Kh5 {[%clk 0:00:03]} 47. a7 {[%clk 0:00:26]}  Qd5 {[%clk 0:00:03]} 48. c6 {[%clk 0:00:23]}  d2 {[%clk 0:00:04]} 49. a8=Q {[%clk 0:00:23]}  d1=Q {[%clk 0:00:04]} 50. Qh8+ {[%clk 0:00:22]}  Kg5 {[%clk 0:00:05]} 51. Qg7+ {[%clk 0:00:21]}  Kh5 {[%clk 0:00:05]} 52. g4+ {[%clk 0:00:20]}  fxg4 {[%clk 0:00:03]} 53. Qxg4+ {[%clk 0:00:18]}  Qxg4 {[%clk 0:00:03]} 54. hxg4+ {[%clk 0:00:19]}  Kxg4 {[%clk 0:00:03]} 55. Qb4+ {[%clk 0:00:19]}  Kf3 {[%clk 0:00:03]} 56. Qc3+ {[%clk 0:00:16]}  Kxf2 {[%clk 0:00:02]} 57. Qg3+ {[%clk 0:00:15]}  Kf1 {[%clk 0:00:03]} 58. Qh3+ {[%clk 0:00:14]}  Ke1 {[%clk 0:00:03]} 59. Qg3+ {[%clk 0:00:13]}  Kd1 {[%clk 0:00:02]} 60. Qg1+ {[%clk 0:00:10]}  Kc2 {[%clk 0:00:02]} 61. Qg2+ {[%clk 0:00:11]}  Qxg2+ {[%clk 0:00:02]} 62. Kxg2 {[%clk 0:00:12]} 1-0


[Site "https://www.chess.com"]

[Event "Titled Tuesday Blitz February 22 Late 2022"]
[White "Gracia Alvarez, Gerardo Antonio"]
[Black "Tregubov, Pavel V."]
[WhiteFideId "5109124"]
[BlackFideId "4115341"]
[WhiteElo "2481"]
[BlackElo "2624"]
[Result "1-0"]
[Round "07"]
[TimeControl "180+1"]
[Date "2022.02.23"]
[WhiteClock "0:00:06"]
[BlackClock "0:00:09"]

1. c4 {[%clk 0:03:00]}  c5 {[%clk 0:02:59]} 2. Nc3 {[%clk 0:03:00]}  Nf6 {[%clk 0:02:57]} 3. g3 {[%clk 0:03:00]}  d5 {[%clk 0:02:55]} 4. cxd5 {[%clk 0:02:59]}  Nxd5 {[%clk 0:02:53]} 5. Bg2 {[%clk 0:02:59]}  Nc7 {[%clk 0:02:52]} 6. d3 {[%clk 0:02:59]}  e5 {[%clk 0:02:51]} 7. Nh3 {[%clk 0:02:58]}  Nc6 {[%clk 0:02:48]} 8. O-O {[%clk 0:02:56]}  Be7 {[%clk 0:02:48]} 9. f4 {[%clk 0:02:56]}  O-O {[%clk 0:02:41]} 10. f5 {[%clk 0:02:51]}  Nd4 {[%clk 0:02:35]} 11. g4 {[%clk 0:02:42]}  Rb8 {[%clk 0:02:30]} 12. e3 {[%clk 0:02:36]}  Nc6 {[%clk 0:02:29]} 13. Ne4 {[%clk 0:02:35]}  f6 {[%clk 0:02:27]} 14. Nhf2 {[%clk 0:02:05]}  Bd7 {[%clk 0:02:19]} 15. h4 {[%clk 0:01:55]}  Kh8 {[%clk 0:02:14]} 16. Qf3 {[%clk 0:01:53]}  Be8 {[%clk 0:02:06]} 17. Bd2 {[%clk 0:01:49]}  h6 {[%clk 0:01:54]} 18. Rac1 {[%clk 0:01:49]}  b6 {[%clk 0:01:53]} 19. Qg3 {[%clk 0:01:49]}  Nd5 {[%clk 0:01:48]} 20. Kh2 {[%clk 0:01:33]}  Ndb4 {[%clk 0:01:44]} 21. Rcd1 {[%clk 0:01:30]}  Nxa2 {[%clk 0:01:41]} 22. g5 {[%clk 0:01:27]}  fxg5 {[%clk 0:01:37]} 23. hxg5 {[%clk 0:01:27]}  Bxg5 {[%clk 0:01:33]} 24. Nh3 {[%clk 0:01:25]}  Bf6 {[%clk 0:01:29]} 25. Bf3 {[%clk 0:01:14]}  Nab4 {[%clk 0:01:27]} 26. Bc3 {[%clk 0:01:13]}  Nd5 {[%clk 0:01:25]} 27. Rg1 {[%clk 0:01:07]}  Nxe3 {[%clk 0:01:19]} 28. Rde1 {[%clk 0:00:52]}  Nxf5 {[%clk 0:01:18]} 29. Qg4 {[%clk 0:00:52]}  Nfd4 {[%clk 0:01:15]} 30. Bd1 {[%clk 0:00:51]}  Qd7 {[%clk 0:01:02]} 31. Qg2 {[%clk 0:00:48]}  Rb7 {[%clk 0:00:56]} 32. Ref1 {[%clk 0:00:48]}  Qe6 {[%clk 0:00:54]} 33. Bg4 {[%clk 0:00:45]}  Qe7 {[%clk 0:00:45]} 34. Bd2 {[%clk 0:00:44]}  Bd7 {[%clk 0:00:44]} 35. Bxh6 {[%clk 0:00:35]}  gxh6 {[%clk 0:00:30]} 36. Nxf6 {[%clk 0:00:30]}  Qg7 {[%clk 0:00:20]} 37. Nxd7 {[%clk 0:00:27]}  Rxf1 {[%clk 0:00:20]} 38. Qxf1 {[%clk 0:00:26]}  e4 {[%clk 0:00:16]} 39. dxe4 {[%clk 0:00:21]}  Ne5 {[%clk 0:00:13]} 40. Nxe5 {[%clk 0:00:20]}  Qxe5+ {[%clk 0:00:14]} 41. Qf4 {[%clk 0:00:09]}  Qxf4+ {[%clk 0:00:12]} 42. Nxf4 {[%clk 0:00:10]}  Re7 {[%clk 0:00:11]} 43. Ng6+ {[%clk 0:00:10]}  Kg7 {[%clk 0:00:11]} 44. Nxe7 {[%clk 0:00:10]}  Kf6 {[%clk 0:00:12]} 45. Nd5+ {[%clk 0:00:10]}  Ke5 {[%clk 0:00:13]} 46. Nc3 {[%clk 0:00:09]}  b5 {[%clk 0:00:12]} 47. Bh5 {[%clk 0:00:07]}  b4 {[%clk 0:00:12]} 48. Ne2 {[%clk 0:00:07]}  Nc2 {[%clk 0:00:11]} 49. Ng3 {[%clk 0:00:07]}  c4 {[%clk 0:00:10]} 50. Rc1 {[%clk 0:00:07]}  b3 {[%clk 0:00:10]} 51. Bd1 {[%clk 0:00:06]}  Ne3 {[%clk 0:00:09]} 52. Be2 {[%clk 0:00:06]}  Kd4 {[%clk 0:00:09]} 53. e5 {[%clk 0:00:07]}  Kxe5 {[%clk 0:00:09]} 54. Bxc4 {[%clk 0:00:06]}  a5 {[%clk 0:00:09]} 55. Bxb3 {[%clk 0:00:06]}  Ng4+ {[%clk 0:00:09]} 56. Kg1 {[%clk 0:00:05]}  Ne3 {[%clk 0:00:09]} 57. Rc5+ {[%clk 0:00:06]} 1-0


[Site "https://www.chess.com"]

[Event "Titled Tuesday Blitz February 22 Late 2022"]
[White "Gupta, Abhijeet"]
[Black "Deac, Bogdan-Daniel"]
[WhiteFideId "5010608"]
[BlackFideId "1226380"]
[WhiteElo "2549"]
[BlackElo "2646"]
[Result "1-0"]
[Round "07"]
[TimeControl "180+1"]
[Date "2022.02.22"]
[WhiteClock "0:01:08"]
[BlackClock "0:00:08"]

1. d4 {[%clk 0:02:59]}  Nf6 {[%clk 0:03:00]} 2. Nf3 {[%clk 0:02:58]}  d5 {[%clk 0:02:59]} 3. Bf4 {[%clk 0:02:58]}  c5 {[%clk 0:02:59]} 4. e3 {[%clk 0:02:55]}  Nc6 {[%clk 0:03:00]} 5. Nbd2 {[%clk 0:02:54]}  Nh5 {[%clk 0:03:00]} 6. dxc5 {[%clk 0:02:53]}  Nxf4 {[%clk 0:03:00]} 7. exf4 {[%clk 0:02:54]}  Qa5 {[%clk 0:03:00]} 8. a3 {[%clk 0:02:40]}  Qxc5 {[%clk 0:02:58]} 9. c4 {[%clk 0:02:40]}  e6 {[%clk 0:02:54]} 10. Bd3 {[%clk 0:02:36]}  g6 {[%clk 0:02:48]} 11. O-O {[%clk 0:02:30]}  Bg7 {[%clk 0:02:48]} 12. cxd5 {[%clk 0:02:28]}  Qxd5 {[%clk 0:02:43]} 13. Be4 {[%clk 0:02:27]}  Qd6 {[%clk 0:02:32]} 14. Qc1 {[%clk 0:02:18]}  Bd7 {[%clk 0:02:05]} 15. Nc4 {[%clk 0:02:17]}  Qe7 {[%clk 0:02:05]} 16. Qe3 {[%clk 0:02:12]}  O-O {[%clk 0:02:03]} 17. Rad1 {[%clk 0:02:10]}  Rfd8 {[%clk 0:01:59]} 18. b4 {[%clk 0:02:10]}  a6 {[%clk 0:01:24]} 19. Qc5 {[%clk 0:02:04]}  Qxc5 {[%clk 0:01:05]} 20. bxc5 {[%clk 0:02:05]}  Rab8 {[%clk 0:01:05]} 21. Nd6 {[%clk 0:02:00]}  Na5 {[%clk 0:00:24]} 22. Ne5 {[%clk 0:02:00]}  Bxe5 {[%clk 0:00:23]} 23. fxe5 {[%clk 0:02:00]}  Bc6 {[%clk 0:00:21]} 24. Bxc6 {[%clk 0:01:48]}  bxc6 {[%clk 0:00:22]} 25. Rd3 {[%clk 0:01:48]}  Rb3 {[%clk 0:00:21]} 26. Rfd1 {[%clk 0:01:41]}  Rdb8 {[%clk 0:00:20]} 27. g3 {[%clk 0:01:35]}  Kf8 {[%clk 0:00:18]} 28. Kg2 {[%clk 0:01:30]}  Ke7 {[%clk 0:00:15]} 29. Rd4 {[%clk 0:01:24]}  Rc3 {[%clk 0:00:11]} 30. Ne4 {[%clk 0:01:22]}  Rc2 {[%clk 0:00:07]} 31. Rd7+ {[%clk 0:01:22]}  Kf8 {[%clk 0:00:07]} 32. Ng5 {[%clk 0:01:18]}  Kg8 {[%clk 0:00:07]} 33. Nxf7 {[%clk 0:01:16]}  Rf8 {[%clk 0:00:07]} 34. Nh6+ {[%clk 0:01:13]}  Kh8 {[%clk 0:00:08]} 35. Ng4 {[%clk 0:01:12]}  Nc4 {[%clk 0:00:08]} 36. Nf6 {[%clk 0:01:08]} 1-0


[Site "https://www.chess.com"]

[Event "Titled Tuesday Blitz February 22 Late 2022"]
[White "Hakemi, Arman"]
[Black "Warakomska, Anna"]
[WhiteFideId "22520805"]
[BlackFideId "1130790"]
[WhiteElo "2659"]
[BlackElo "2495"]
[Result "1-0"]
[Round "07"]
[TimeControl "180+1"]
[Date "2022.02.23"]
[WhiteClock "0:00:55"]
[BlackClock "0:00:03"]

1. e4 {[%clk 0:02:37]}  c5 {[%clk 0:02:59]} 2. Nf3 {[%clk 0:02:37]}  e6 {[%clk 0:02:59]} 3. c3 {[%clk 0:02:36]}  Nf6 {[%clk 0:02:55]} 4. e5 {[%clk 0:02:36]}  Nd5 {[%clk 0:02:55]} 5. g3 {[%clk 0:02:36]}  d6 {[%clk 0:02:48]} 6. exd6 {[%clk 0:02:37]}  Bxd6 {[%clk 0:02:47]} 7. Bg2 {[%clk 0:02:38]}  Nc6 {[%clk 0:02:45]} 8. O-O {[%clk 0:02:39]}  O-O {[%clk 0:02:45]} 9. d4 {[%clk 0:02:40]}  cxd4 {[%clk 0:02:45]} 10. Nxd4 {[%clk 0:02:41]}  Nxd4 {[%clk 0:02:38]} 11. Qxd4 {[%clk 0:02:42]}  Qc7 {[%clk 0:02:37]} 12. Rd1 {[%clk 0:02:33]}  Bc5 {[%clk 0:02:30]} 13. Qd3 {[%clk 0:02:32]}  Bd7 {[%clk 0:02:22]} 14. a3 {[%clk 0:02:07]}  a6 {[%clk 0:02:09]} 15. c4 {[%clk 0:02:00]}  Nf6 {[%clk 0:01:54]} 16. b4 {[%clk 0:02:00]}  Be7 {[%clk 0:01:51]} 17. Bb2 {[%clk 0:01:59]}  Bc6 {[%clk 0:01:47]} 18. Nd2 {[%clk 0:01:48]}  Rfd8 {[%clk 0:01:44]} 19. Qe2 {[%clk 0:01:47]}  Bxg2 {[%clk 0:01:43]} 20. Kxg2 {[%clk 0:01:48]}  Rac8 {[%clk 0:01:40]} 21. Rac1 {[%clk 0:01:47]}  Ne8 {[%clk 0:01:20]} 22. c5 {[%clk 0:01:41]}  Bf6 {[%clk 0:01:17]} 23. Bxf6 {[%clk 0:01:30]}  Nxf6 {[%clk 0:01:17]} 24. Qf3 {[%clk 0:01:30]}  a5 {[%clk 0:01:05]} 25. Nc4 {[%clk 0:01:16]}  axb4 {[%clk 0:00:44]} 26. axb4 {[%clk 0:01:17]}  Rxd1 {[%clk 0:00:43]} 27. Rxd1 {[%clk 0:01:15]}  Nd5 {[%clk 0:00:44]} 28. Nd6 {[%clk 0:01:13]}  Ra8 {[%clk 0:00:34]} 29. b5 {[%clk 0:01:09]}  f6 {[%clk 0:00:19]} 30. Rxd5 {[%clk 0:00:58]}  exd5 {[%clk 0:00:18]} 31. Qxd5+ {[%clk 0:00:59]}  Kf8 {[%clk 0:00:16]} 32. Nxb7 {[%clk 0:00:57]}  Rc8 {[%clk 0:00:11]} 33. c6 {[%clk 0:00:56]}  Re8 {[%clk 0:00:08]} 34. Nc5 {[%clk 0:00:55]}  Rd8 {[%clk 0:00:03]} 35. Ne6+ {[%clk 0:00:55]} 1-0


[Site "https://www.chess.com"]

[Event "Titled Tuesday Blitz February 22 Late 2022"]
[White "Hasangatin, Ramil"]
[Black "Garagulya, Konstantin"]
[WhiteFideId "4122160"]
[BlackFideId "4128931"]
[WhiteElo "2695"]
[BlackElo "2520"]
[Result "1-0"]
[Round "07"]
[TimeControl "180+1"]
[Date "2022.02.23"]
[WhiteClock "0:01:26"]
[BlackClock "0:00:23"]

1. e4 {[%clk 0:02:59]}  c5 {[%clk 0:02:27]} 2. Nf3 {[%clk 0:02:58]}  a6 {[%clk 0:02:27]} 3. c3 {[%clk 0:02:56]}  d5 {[%clk 0:02:27]} 4. exd5 {[%clk 0:02:56]}  Qxd5 {[%clk 0:02:28]} 5. d4 {[%clk 0:02:57]}  Nf6 {[%clk 0:02:28]} 6. Be3 {[%clk 0:02:54]}  cxd4 {[%clk 0:02:29]} 7. Qxd4 {[%clk 0:02:53]}  Nc6 {[%clk 0:02:29]} 8. Qxd5 {[%clk 0:02:48]}  Nxd5 {[%clk 0:02:30]} 9. Bd2 {[%clk 0:02:47]}  Bg4 {[%clk 0:02:30]} 10. Be2 {[%clk 0:02:45]}  f6 {[%clk 0:02:30]} 11. h3 {[%clk 0:02:43]}  Bh5 {[%clk 0:02:30]} 12. Na3 {[%clk 0:02:39]}  e5 {[%clk 0:02:29]} 13. Nc4 {[%clk 0:02:38]}  e4 {[%clk 0:02:23]} 14. Nd4 {[%clk 0:02:29]}  Bxe2 {[%clk 0:02:23]} 15. Nxe2 {[%clk 0:02:26]}  O-O-O {[%clk 0:02:20]} 16. O-O-O {[%clk 0:02:25]}  Bc5 {[%clk 0:02:16]} 17. Ng3 {[%clk 0:01:58]}  f5 {[%clk 0:01:09]} 18. Nxf5 {[%clk 0:01:50]}  Bxf2 {[%clk 0:01:00]} 19. Ncd6+ {[%clk 0:01:45]}  Kc7 {[%clk 0:00:57]} 20. Nxe4 {[%clk 0:01:45]}  Rhf8 {[%clk 0:00:46]} 21. Nxg7 {[%clk 0:01:39]}  Ne3 {[%clk 0:00:30]} 22. Ne6+ {[%clk 0:01:34]}  Kc8 {[%clk 0:00:30]} 23. Nxd8 {[%clk 0:01:27]}  Nxd1 {[%clk 0:00:23]} 24. Nxc6 {[%clk 0:01:26]} 1-0


[Site "https://www.chess.com"]